[Event "*** Titled Tuesday Blitz"]
[Site "Chess.com"]
[Date "2018.01.02"]
[Round "4"]
[White "Muracle"]
[Black "krzyzan94"]
[Result "0-1"]
[WhiteElo "2497"]
[BlackElo "2612"]
[TimeControl "180+2"]
[EndTime "13:52:48 PST"]
[Termination "krzyzan94 won by checkmate"]

1. Nf3 {[%clk 0:02:56.5]} 1... Nf6 {[%clk 0:03:00.6]} 2. g3 {[%clk 0:02:58.4]}
2... g6 {[%clk 0:03:01.9]} 3. Bg2 {[%clk 0:02:59.8]} 3... Bg7 {[%clk 0:03:03.8]}
4. O-O {[%clk 0:03:01.7]} 4... O-O {[%clk 0:03:05]} 5. d4 {[%clk 0:03:03.6]}
5... d6 {[%clk 0:03:06.2]} 6. b3 {[%clk 0:03:04.7]} 6... c5 {[%clk 0:03:03.2]}
7. Bb2 {[%clk 0:03:02.6]} 7... cxd4 {[%clk 0:02:54.9]} 8. Nxd4 {[%clk
0:03:02.4]} 8... Nfd7 {[%clk 0:02:50.8]} 9. c4 {[%clk 0:02:59.5]} 9... a6 {[%clk
0:02:50]} 10. Nc3 {[%clk 0:02:59.3]} 10... Ne5 {[%clk 0:02:49.8]} 11. Rc1 {[%clk
0:02:42.8]} 11... Nbc6 {[%clk 0:02:50.3]} 12. Nxc6 {[%clk 0:02:42.8]} 12... Nxc6
{[%clk 0:02:49.2]} 13. Ba1 {[%clk 0:02:43.4]} 13... Be6 {[%clk 0:02:44]} 14. Nd5
{[%clk 0:02:43.8]} 14... Bxa1 {[%clk 0:02:40.7]} 15. Rxa1 {[%clk 0:02:45.7]}
15... Rc8 {[%clk 0:02:42.6]} 16. Qd2 {[%clk 0:02:43]} 16... f6 {[%clk
0:02:42.2]} 17. Nf4 {[%clk 0:02:41.1]} 17... Bf7 {[%clk 0:02:40.1]} 18. Bd5
{[%clk 0:02:41.5]} 18... Qd7 {[%clk 0:02:41.3]} 19. Bxf7+ {[%clk 0:02:36.5]}
19... Rxf7 {[%clk 0:02:43.2]} 20. Rfd1 {[%clk 0:02:11.6]} 20... Ne5 {[%clk
0:02:38.9]} 21. Rac1 {[%clk 0:02:11.5]} 21... g5 {[%clk 0:02:36]} 22. Nd5 {[%clk
0:02:08.5]} 22... Qh3 {[%clk 0:02:37]} 23. f4 {[%clk 0:01:05.7]} 23... Ng4
{[%clk 0:02:11.8]} 24. e4 {[%clk 0:01:01.8]} 24... gxf4 {[%clk 0:02:13.1]} 25.
Nxf4 {[%clk 0:00:58.6]} 25... Qh6 {[%clk 0:02:14.1]} 26. Qe2 {[%clk 0:00:37.4]}
26... Ne5 {[%clk 0:02:13.1]} 27. Nd3 {[%clk 0:00:33.4]} 27... Rg7 {[%clk
0:02:09.9]} 28. Nxe5 {[%clk 0:00:32.4]} 28... fxe5 {[%clk 0:02:11.8]} 29. Rf1
{[%clk 0:00:30.4]} 29... Qg5 {[%clk 0:02:10.2]} 30. Rc3 {[%clk 0:00:28]} 30...
Rf8 {[%clk 0:02:08]} 31. Rcf3 {[%clk 0:00:25.9]} 31... Rgf7 {[%clk 0:02:08.9]}
32. Rxf7 {[%clk 0:00:21.5]} 32... Rxf7 {[%clk 0:02:10.8]} 33. Rxf7 {[%clk
0:00:22.7]} 33... Kxf7 {[%clk 0:02:12.1]} 34. Qf1+ {[%clk 0:00:20.5]} 34... Kg7
{[%clk 0:02:11.9]} 35. Qf2 {[%clk 0:00:19.3]} 35... h5 {[%clk 0:02:05.6]} 36.
Qb6 {[%clk 0:00:17.4]} 36... Qc1+ {[%clk 0:02:04.1]} 37. Kg2 {[%clk 0:00:18]}
37... Qc2+ {[%clk 0:02:05.6]} 38. Kh3 {[%clk 0:00:18.9]} 38... Qxe4 {[%clk
0:02:06.7]} 39. Qd8 {[%clk 0:00:19.8]} 39... Qg4+ {[%clk 0:02:03.6]} 40. Kg2
{[%clk 0:00:20.9]} 40... Qg5 {[%clk 0:02:02.3]} 41. Qd7 {[%clk 0:00:21.9]} 41...
b6 {[%clk 0:01:49.5]} 42. Qc6 {[%clk 0:00:20.2]} 42... Qd2+ {[%clk 0:01:38.8]}
43. Kh3 {[%clk 0:00:20.6]} 43... Qf2 {[%clk 0:01:40]} 44. Qc7 {[%clk 0:00:18.5]}
44... Kf6 {[%clk 0:01:29.5]} 45. Qd8 {[%clk 0:00:17.1]} 45... Kf7 {[%clk
0:01:28.3]} 46. Qh8 {[%clk 0:00:17.1]} 46... Qf5+ {[%clk 0:01:23.3]} 47. Kg2
{[%clk 0:00:18.2]} 47... e4 {[%clk 0:01:24.9]} 48. Qb8 {[%clk 0:00:18.6]} 48...
e3 {[%clk 0:01:22.9]} 49. Qxb6 {[%clk 0:00:16]} 49... Qf2+ {[%clk 0:01:23.7]}
50. Kh3 {[%clk 0:00:16.7]} 50... Qf1+ {[%clk 0:01:23.6]} 51. Kh4 {[%clk
0:00:17.8]} 51... e2 {[%clk 0:01:25.3]} 52. Qa5 {[%clk 0:00:08.4]} 52... Qf6+
{[%clk 0:01:16.1]} 53. Kh3 {[%clk 0:00:09.1]} 53... Qe6+ {[%clk 0:01:17.4]} 54.
Kh4 {[%clk 0:00:10.3]} 54... Qg4# {[%clk 0:01:18.3]} 0-1

[Event "*** Titled Tuesday Blitz"]
[Site "Chess.com"]
[Date "2018.01.02"]
[Round "4"]
[White "Keaton87"]
[Black "catalin009"]
[Result "0-1"]
[WhiteElo "2520"]
[BlackElo "2361"]
[TimeControl "180+2"]
[EndTime "13:53:01 PST"]
[Termination "catalin009 won by resignation"]

1. d4 {[%clk 0:03:01.9]} 1... Nf6 {[%clk 0:02:58.9]} 2. Bg5 {[%clk 0:03:02.5]}
2... Ne4 {[%clk 0:02:57.1]} 3. Bf4 {[%clk 0:03:02.9]} 3... c5 {[%clk 0:02:57.4]}
4. f3 {[%clk 0:03:02.5]} 4... Qa5+ {[%clk 0:02:51.1]} 5. c3 {[%clk 0:03:03.5]}
5... Nf6 {[%clk 0:02:50.1]} 6. d5 {[%clk 0:02:58.2]} 6... Qb6 {[%clk 0:02:42]}
7. Bc1 {[%clk 0:02:58.5]} 7... e6 {[%clk 0:02:39.5]} 8. e4 {[%clk 0:02:58.8]}
8... exd5 {[%clk 0:02:40.1]} 9. exd5 {[%clk 0:02:59.4]} 9... d6 {[%clk
0:02:41.1]} 10. c4 {[%clk 0:03:00.5]} 10... Be7 {[%clk 0:02:41.9]} 11. Bd3
{[%clk 0:03:01.3]} 11... O-O {[%clk 0:02:43.2]} 12. Ne2 {[%clk 0:03:02.2]} 12...
Nbd7 {[%clk 0:02:40.6]} 13. f4 {[%clk 0:02:58.5]} 13... Re8 {[%clk 0:02:29.7]}
14. O-O {[%clk 0:02:59.1]} 14... Bf8 {[%clk 0:02:30.2]} 15. Nbc3 {[%clk
0:02:59.2]} 15... a6 {[%clk 0:02:29.6]} 16. b3 {[%clk 0:02:54.3]} 16... Qc7
{[%clk 0:02:13.6]} 17. h3 {[%clk 0:02:51.7]} 17... b5 {[%clk 0:02:00.9]} 18.
cxb5 {[%clk 0:02:51]} 18... Nb6 {[%clk 0:01:46.7]} 19. bxa6 {[%clk 0:02:41.5]}
19... Bxa6 {[%clk 0:01:38.7]} 20. Bxa6 {[%clk 0:02:43.4]} 20... Rxa6 {[%clk
0:01:39.9]} 21. Qd3 {[%clk 0:02:29.9]} 21... Qb7 {[%clk 0:01:39.2]} 22. Qb5
{[%clk 0:02:11.7]} 22... Rea8 {[%clk 0:01:22.2]} 23. Qc6 {[%clk 0:02:07.8]}
23... Qxc6 {[%clk 0:01:14.7]} 24. dxc6 {[%clk 0:02:08.6]} 24... Rc8 {[%clk
0:01:08.7]} 25. a4 {[%clk 0:01:57.4]} 25... Rxc6 {[%clk 0:01:09]} 26. Bb2 {[%clk
0:01:52.9]} 26... d5 {[%clk 0:01:09.3]} 27. Nb5 {[%clk 0:01:51.6]} 27... d4
{[%clk 0:01:01.3]} 28. Rfc1 {[%clk 0:01:41.2]} 28... Nbd5 {[%clk 0:01:00.3]} 29.
Kf2 {[%clk 0:01:28.9]} 29... Ne4+ {[%clk 0:00:58.5]} 30. Kg1 {[%clk 0:01:18.6]}
30... Nd2 {[%clk 0:00:46.3]} 31. Ra3 {[%clk 0:01:12.9]} 31... Re6 {[%clk
0:00:45.3]} 32. Kf2 {[%clk 0:01:03.7]} 32... Ne4+ {[%clk 0:00:44.6]} 33. Kg1
{[%clk 0:01:04.5]} 33... Nd2 {[%clk 0:00:39.7]} 34. Kf2 {[%clk 0:01:02.8]} 34...
Nb4 {[%clk 0:00:40.8]} 35. Ke1 {[%clk 0:00:19.3]} 35... Ne4 {[%clk 0:00:12.4]}
36. Rd1 {[%clk 0:00:16.7]} 36... Ng3 {[%clk 0:00:12.1]} 37. Rd2 {[%clk 0:00:14]}
37... d3 {[%clk 0:00:13]} 38. Nc3 {[%clk 0:00:12.2]} 38... dxe2 {[%clk
0:00:13.3]} 39. Bc1 {[%clk 0:00:08.2]} 39... g6 {[%clk 0:00:13]} 40. Nxe2 {[%clk
0:00:07.5]} 40... Nxe2 {[%clk 0:00:12.8]} 41. Rxe2 {[%clk 0:00:09.4]} 41... Nc2+
{[%clk 0:00:13.4]} 0-1

[Event "*** Titled Tuesday Blitz"]
[Site "Chess.com"]
[Date "2018.01.02"]
[Round "4"]
[White "aa175"]
[Black "BillForster"]
[Result "1-0"]
[WhiteElo "1904"]
[BlackElo "1514"]
[TimeControl "180+2"]
[EndTime "13:53:12 PST"]
[Termination "aa175 won on time"]

1. e4 {[%clk 0:03:01.9]} 1... c5 {[%clk 0:02:59.3]} 2. Nf3 {[%clk 0:03:02.4]}
2... a6 {[%clk 0:03:00.2]} 3. d4 {[%clk 0:03:03]} 3... cxd4 {[%clk 0:03:00.7]}
4. Nxd4 {[%clk 0:03:03.6]} 4... e5 {[%clk 0:03:01.5]} 5. Nf3 {[%clk 0:03:02.7]}
5... Nf6 {[%clk 0:03:01.3]} 6. Nxe5 {[%clk 0:03:01.9]} 6... Qa5+ {[%clk
0:03:00.8]} 7. Bd2 {[%clk 0:02:44.5]} 7... Qxe5 {[%clk 0:03:02.7]} 8. Nc3 {[%clk
0:02:44.3]} 8... Be7 {[%clk 0:02:51.6]} 9. Bd3 {[%clk 0:02:43.3]} 9... O-O
{[%clk 0:02:49.2]} 10. O-O {[%clk 0:02:43]} 10... Nc6 {[%clk 0:02:48.5]} 11. Be3
{[%clk 0:02:38.3]} 11... Bc5 {[%clk 0:02:34]} 12. Nd5 {[%clk 0:01:56.2]} 12...
Bxe3 {[%clk 0:02:19.6]} 13. Nxf6+ {[%clk 0:01:34.4]} 13... Qxf6 {[%clk
0:02:14.8]} 14. fxe3 {[%clk 0:01:33.5]} 14... Qe7 {[%clk 0:02:11.9]} 15. c3
{[%clk 0:01:27.1]} 15... d6 {[%clk 0:02:05.6]} 16. Qh5 {[%clk 0:01:05.6]} 16...
Ne5 {[%clk 0:01:58.7]} 17. Be2 {[%clk 0:00:57.8]} 17... Be6 {[%clk 0:01:50.9]}
18. b3 {[%clk 0:00:34.5]} 18... f6 {[%clk 0:01:40.6]} 19. Qh4 {[%clk 0:00:28]}
19... Rac8 {[%clk 0:01:31]} 20. c4 {[%clk 0:00:22.3]} 20... Rc7 {[%clk
0:01:19.4]} 21. Rad1 {[%clk 0:00:20]} 21... f5 {[%clk 0:01:01]} 22. Qxe7 {[%clk
0:00:18.1]} 22... Rxe7 {[%clk 0:01:00]} 23. Rxd6 {[%clk 0:00:19.1]} 23... fxe4
{[%clk 0:00:55.5]} 24. Rxf8+ {[%clk 0:00:18.3]} 24... Kxf8 {[%clk 0:00:52.7]}
25. Rd8+ {[%clk 0:00:18.1]} 25... Kf7 {[%clk 0:00:51.2]} 26. Rd1 {[%clk
0:00:17.1]} 26... Bg4 {[%clk 0:00:47.4]} 27. Rf1+ {[%clk 0:00:16.1]} 27... Kg6
{[%clk 0:00:44.9]} 28. Bd1 {[%clk 0:00:09.9]} 28... Bxd1 {[%clk 0:00:43.6]} 29.
Rxd1 {[%clk 0:00:10.8]} 29... Ng4 {[%clk 0:00:37.6]} 30. Re1 {[%clk 0:00:05.6]}
30... Rd7 {[%clk 0:00:34.1]} 31. h3 {[%clk 0:00:06.5]} 31... Ne5 {[%clk
0:00:29]} 32. Re2 {[%clk 0:00:05.9]} 32... Rd1+ {[%clk 0:00:20.2]} 33. Kh2
{[%clk 0:00:07.1]} 33... Rd3 {[%clk 0:00:14.5]} 34. Kg1 {[%clk 0:00:03.2]} 34...
Kf6 {[%clk 0:00:14.8]} 35. Kf2 {[%clk 0:00:04.6]} 35... Ke6 {[%clk 0:00:14.4]}
36. Kg3 {[%clk 0:00:04.8]} 36... g6 {[%clk 0:00:13.6]} 37. Kf4 {[%clk
0:00:05.8]} 37... h6 {[%clk 0:00:12.5]} 38. Kxe4 {[%clk 0:00:06.7]} 38... Rd1
{[%clk 0:00:10.4]} 39. Rf2 {[%clk 0:00:05.8]} 39... Ra1 {[%clk 0:00:07.9]} 40.
g4 {[%clk 0:00:05]} 40... Rc1 {[%clk 0:00:06.1]} 41. Rd2 {[%clk 0:00:05.2]}
41... Rh1 {[%clk 0:00:04.3]} 42. Rd5 {[%clk 0:00:04.5]} 42... Nf7 {[%clk
0:00:02.2]} 43. Rd2 {[%clk 0:00:03.5]} 1-0

[Event "*** Titled Tuesday Blitz"]
[Site "Chess.com"]
[Date "2018.01.02"]
[Round "4"]
[White "Pirlo1"]
[Black "ramses135"]
[Result "0-1"]
[WhiteElo "2219"]
[BlackElo "2380"]
[TimeControl "180+2"]
[EndTime "13:53:16 PST"]
[Termination "ramses135 won on time"]

1. e4 {[%clk 0:02:57.6]} 1... e5 {[%clk 0:02:58.2]} 2. Nf3 {[%clk 0:02:57.5]}
2... Nc6 {[%clk 0:02:58.8]} 3. Bb5 {[%clk 0:02:58.7]} 3... Nge7 {[%clk
0:02:59.2]} 4. Nc3 {[%clk 0:02:58.5]} 4... g6 {[%clk 0:02:56.4]} 5. d4 {[%clk
0:02:57.1]} 5... exd4 {[%clk 0:02:52.9]} 6. Nd5 {[%clk 0:02:57.5]} 6... Nxd5
{[%clk 0:01:38.9]} 7. exd5 {[%clk 0:02:56.9]} 7... Qe7+ {[%clk 0:01:25.6]} 8.
Kf1 {[%clk 0:02:57.2]} 8... Ne5 {[%clk 0:01:25.7]} 9. Nxd4 {[%clk 0:02:41.1]}
9... Bg7 {[%clk 0:01:23.8]} 10. h4 {[%clk 0:02:24.1]} 10... O-O {[%clk
0:01:21.6]} 11. h5 {[%clk 0:02:24.6]} 11... d6 {[%clk 0:01:12]} 12. Be2 {[%clk
0:01:53]} 12... c5 {[%clk 0:00:46.5]} 13. dxc6 {[%clk 0:01:38.6]} 13... bxc6
{[%clk 0:00:48.4]} 14. Bf4 {[%clk 0:01:36.2]} 14... Bb7 {[%clk 0:00:36.9]} 15.
Qd2 {[%clk 0:01:22.8]} 15... d5 {[%clk 0:00:18.8]} 16. Re1 {[%clk 0:01:19.2]}
16... c5 {[%clk 0:00:20]} 17. Nf3 {[%clk 0:01:13.1]} 17... Nxf3 {[%clk
0:00:14.7]} 18. Bxf3 {[%clk 0:01:13.5]} 18... Qd7 {[%clk 0:00:12.5]} 19. c3
{[%clk 0:00:40.6]} 19... Rae8 {[%clk 0:00:13]} 20. Rxe8 {[%clk 0:00:36.3]} 20...
Rxe8 {[%clk 0:00:14.9]} 21. hxg6 {[%clk 0:00:36.9]} 21... hxg6 {[%clk 0:00:15]}
22. g3 {[%clk 0:00:27.1]} 22... Qf5 {[%clk 0:00:14.3]} 23. Kg2 {[%clk
0:00:26.7]} 23... Bc6 {[%clk 0:00:12.1]} 24. Rd1 {[%clk 0:00:24.6]} 24... Rd8
{[%clk 0:00:11.4]} 25. Bg5 {[%clk 0:00:22.8]} 25... Rd7 {[%clk 0:00:11.7]} 26.
Qf4 {[%clk 0:00:21.4]} 26... Qxf4 {[%clk 0:00:12.8]} 27. Bxf4 {[%clk 0:00:22.5]}
27... Kf8 {[%clk 0:00:13.5]} 28. c4 {[%clk 0:00:20.9]} 28... dxc4 {[%clk
0:00:11.9]} 29. Rc1 {[%clk 0:00:17.5]} 29... Bxf3+ {[%clk 0:00:12.3]} 30. Kxf3
{[%clk 0:00:18.5]} 30... Bxb2 {[%clk 0:00:13.2]} 31. Rxc4 {[%clk 0:00:19.1]}
31... Bd4 {[%clk 0:00:14.5]} 32. Be3 {[%clk 0:00:13.1]} 32... Ke7 {[%clk
0:00:14]} 33. Bxd4 {[%clk 0:00:10.6]} 33... cxd4 {[%clk 0:00:15.9]} 34. Ke2
{[%clk 0:00:07.2]} 34... Ke6 {[%clk 0:00:17.1]} 35. Kd3 {[%clk 0:00:05.6]} 35...
Ke5 {[%clk 0:00:18.5]} 36. f4+ {[%clk 0:00:05.7]} 36... Kf5 {[%clk 0:00:19.9]}
37. Rc5+ {[%clk 0:00:05]} 37... Kg4 {[%clk 0:00:21]} 38. Rg5+ {[%clk 0:00:05.5]}
38... Kf3 {[%clk 0:00:22.3]} 39. f5 {[%clk 0:00:05.8]} 39... Rd6 {[%clk
0:00:21.3]} 40. g4 {[%clk 0:00:03.5]} 40... Kf4 {[%clk 0:00:21.8]} 41. fxg6
{[%clk 0:00:04.5]} 41... Kxg5 {[%clk 0:00:21.4]} 42. gxf7 {[%clk 0:00:05.1]}
42... Rf6 {[%clk 0:00:22.2]} 43. Kxd4 {[%clk 0:00:05.7]} 43... Rxf7 {[%clk
0:00:23.3]} 0-1

[Event "*** Titled Tuesday Blitz"]
[Site "Chess.com"]
[Date "2018.01.02"]
[Round "4"]
[White "Korchmar_Vasiliy"]
[Black "FairChess_on_YouTube"]
[Result "0-1"]
[WhiteElo "2531"]
[BlackElo "2748"]
[TimeControl "180+2"]
[EndTime "13:53:18 PST"]
[Termination "FairChess_on_YouTube won by resignation"]

1. d4 {[%clk 0:03:00.6]} 1... g6 {[%clk 0:03:00.8]} 2. e4 {[%clk 0:03:01.1]}
2... Bg7 {[%clk 0:03:02]} 3. Nc3 {[%clk 0:03:02.4]} 3... a6 {[%clk 0:03:02.1]}
4. f4 {[%clk 0:03:03.4]} 4... b5 {[%clk 0:03:02.9]} 5. Nf3 {[%clk 0:03:04.4]}
5... Bb7 {[%clk 0:03:04]} 6. Bd3 {[%clk 0:03:05.5]} 6... Nc6 {[%clk 0:03:00.9]}
7. Be3 {[%clk 0:02:59.1]} 7... Nb4 {[%clk 0:02:58.9]} 8. Be2 {[%clk 0:02:54.1]}
8... Nf6 {[%clk 0:02:52.2]} 9. a3 {[%clk 0:02:52.8]} 9... Nc6 {[%clk 0:02:53.2]}
10. e5 {[%clk 0:02:29.4]} 10... Ng4 {[%clk 0:02:53.2]} 11. Bg1 {[%clk
0:02:30.7]} 11... e6 {[%clk 0:02:52.8]} 12. h3 {[%clk 0:02:29.5]} 12... Nh6
{[%clk 0:02:53.3]} 13. g4 {[%clk 0:02:30.7]} 13... Ng8 {[%clk 0:02:49.6]} 14.
Bf2 {[%clk 0:02:15.5]} 14... h5 {[%clk 0:02:31.8]} 15. Rg1 {[%clk 0:02:09.7]}
15... hxg4 {[%clk 0:02:31.8]} 16. hxg4 {[%clk 0:02:11.6]} 16... Nge7 {[%clk
0:02:27.1]} 17. Qd2 {[%clk 0:02:07]} 17... Na5 {[%clk 0:02:24.9]} 18. O-O-O
{[%clk 0:01:55.6]} 18... Nc4 {[%clk 0:02:18.4]} 19. Qe1 {[%clk 0:01:29.6]} 19...
Nd5 {[%clk 0:02:11]} 20. Nxd5 {[%clk 0:01:29.6]} 20... Bxd5 {[%clk 0:02:11.4]}
21. Rh1 {[%clk 0:01:19.1]} 21... Qe7 {[%clk 0:01:55.8]} 22. Rxh8+ {[%clk
0:01:13]} 22... Bxh8 {[%clk 0:01:57.7]} 23. Bh4 {[%clk 0:01:14.3]} 23... Qf8
{[%clk 0:01:58.5]} 24. Ng5 {[%clk 0:01:09.6]} 24... d6 {[%clk 0:01:51.4]} 25.
Nh7 {[%clk 0:01:00.2]} 25... Qh6 {[%clk 0:01:48.8]} 26. Nf6+ {[%clk 0:00:55.6]}
26... Bxf6 {[%clk 0:01:48.3]} 27. Bxf6 {[%clk 0:00:57.5]} 27... Qxf4+ {[%clk
0:01:48.2]} 28. Kb1 {[%clk 0:00:59.1]} 28... Kd7 {[%clk 0:01:41.6]} 29. Qh4
{[%clk 0:00:46.5]} 29... Qe3 {[%clk 0:01:31.9]} 30. Bxc4 {[%clk 0:00:31.8]}
30... bxc4 {[%clk 0:01:31.3]} 31. Qh7 {[%clk 0:00:26.4]} 31... Rb8 {[%clk
0:01:28.3]} 32. Qxf7+ {[%clk 0:00:27.2]} 32... Kc6 {[%clk 0:01:29.4]} 33. exd6
{[%clk 0:00:25.6]} 33... cxd6 {[%clk 0:01:21.8]} 34. Qa7 {[%clk 0:00:26.1]}
34... Rb6 {[%clk 0:01:00.8]} 35. Bd8 {[%clk 0:00:16.2]} 35... Rb7 {[%clk
0:01:00.7]} 36. Qxa6+ {[%clk 0:00:16.6]} 36... Kd7 {[%clk 0:01:01.6]} 37. Bb6
{[%clk 0:00:07.3]} 37... Qe2 {[%clk 0:00:45.6]} 38. Rc1 {[%clk 0:00:06.7]} 38...
Ke7 {[%clk 0:00:41.4]} 39. c3 {[%clk 0:00:07.9]} 39... Kf6 {[%clk 0:00:37.6]}
40. Bd8+ {[%clk 0:00:07.5]} 40... Kg7 {[%clk 0:00:38.5]} 41. Bb6 {[%clk
0:00:07.2]} 41... Qxg4 {[%clk 0:00:34.6]} 42. a4 {[%clk 0:00:05.8]} 42... Qf4
{[%clk 0:00:23.5]} 43. Re1 {[%clk 0:00:06.9]} 43... Qd2 {[%clk 0:00:20.3]} 44.
Rg1 {[%clk 0:00:06.2]} 44... Qe3 {[%clk 0:00:18.4]} 45. Rf1 {[%clk 0:00:05.7]}
45... Qd3+ {[%clk 0:00:18.8]} 46. Ka2 {[%clk 0:00:06.9]} 46... Qxf1 {[%clk
0:00:19.8]} 0-1

[Event "*** Titled Tuesday Blitz"]
[Site "Chess.com"]
[Date "2018.01.02"]
[Round "4"]
[White "AnonymousBread"]
[Black "JammyDodger91"]
[Result "0-1"]
[WhiteElo "2407"]
[BlackElo "2386"]
[TimeControl "180+2"]
[EndTime "13:53:19 PST"]
[Termination "JammyDodger91 won by resignation"]

1. d4 {[%clk 0:03:01.9]} 1... d5 {[%clk 0:03:00.8]} 2. Bf4 {[%clk 0:03:01.3]}
2... Nf6 {[%clk 0:03:01.4]} 3. e3 {[%clk 0:02:59]} 3... e6 {[%clk 0:03:03]} 4.
Nc3 {[%clk 0:03:00.2]} 4... Bd6 {[%clk 0:03:04.5]} 5. Bd3 {[%clk 0:02:59.8]}
5... a6 {[%clk 0:03:03.1]} 6. Nf3 {[%clk 0:02:59.1]} 6... c5 {[%clk 0:03:04.2]}
7. dxc5 {[%clk 0:02:56.9]} 7... Bxc5 {[%clk 0:03:04.5]} 8. O-O {[%clk
0:02:57.6]} 8... Nc6 {[%clk 0:03:05.1]} 9. e4 {[%clk 0:02:58.4]} 9... dxe4
{[%clk 0:03:00.6]} 10. Nxe4 {[%clk 0:02:59.4]} 10... Be7 {[%clk 0:03:02.1]} 11.
Qe2 {[%clk 0:02:55.3]} 11... O-O {[%clk 0:03:00.3]} 12. c3 {[%clk 0:02:56.4]}
12... Qa5 {[%clk 0:02:52]} 13. Rfe1 {[%clk 0:02:53.8]} 13... Rd8 {[%clk
0:02:51.5]} 14. Rad1 {[%clk 0:02:54.2]} 14... Bd7 {[%clk 0:02:52.4]} 15. b4
{[%clk 0:02:38]} 15... Qa3 {[%clk 0:02:18.5]} 16. Bc1 {[%clk 0:02:26.3]} 16...
Qa4 {[%clk 0:02:19]} 17. h4 {[%clk 0:01:50.7]} 17... Be8 {[%clk 0:02:14.6]} 18.
g3 {[%clk 0:01:35.9]} 18... g6 {[%clk 0:01:45.1]} 19. Nfg5 {[%clk 0:01:33]}
19... Nxe4 {[%clk 0:01:34.2]} 20. Nxe4 {[%clk 0:01:33.7]} 20... Ne5 {[%clk
0:01:35]} 21. Bb1 {[%clk 0:01:22.6]} 21... Bb5 {[%clk 0:01:30.4]} 22. Rxd8+
{[%clk 0:01:16.7]} 22... Rxd8 {[%clk 0:01:32.3]} 23. Qe3 {[%clk 0:01:15.9]}
23... Rd1 {[%clk 0:01:25.9]} 24. Kg2 {[%clk 0:00:34.6]} 24... Rxe1 {[%clk
0:01:15.4]} 25. Qxe1 {[%clk 0:00:36.5]} 25... Bd3 {[%clk 0:01:13.8]} 26. Bf4
{[%clk 0:00:29.1]} 26... Bxb1 {[%clk 0:00:51]} 27. Qxb1 {[%clk 0:00:31]} 27...
Nc4 {[%clk 0:00:42]} 28. Qd3 {[%clk 0:00:24.8]} 28... Qc6 {[%clk 0:00:41.2]} 29.
Qf3 {[%clk 0:00:23.6]} 29... e5 {[%clk 0:00:35.9]} 30. Bg5 {[%clk 0:00:21.9]}
30... Bxg5 {[%clk 0:00:20.8]} 31. hxg5 {[%clk 0:00:23.8]} 31... Kg7 {[%clk
0:00:19.1]} 32. Nf6 {[%clk 0:00:17.6]} 32... Qxf3+ {[%clk 0:00:19.2]} 33. Kxf3
{[%clk 0:00:19.5]} 33... Nd6 {[%clk 0:00:17]} 34. Nd5 {[%clk 0:00:15.7]} 34...
h6 {[%clk 0:00:15.6]} 35. gxh6+ {[%clk 0:00:16.8]} 35... Kxh6 {[%clk 0:00:17.5]}
36. Ke3 {[%clk 0:00:17.1]} 36... Kg5 {[%clk 0:00:18.9]} 37. Ne7 {[%clk
0:00:17.6]} 37... Kg4 {[%clk 0:00:19.9]} 38. Nd5 {[%clk 0:00:17.4]} 38... f5
{[%clk 0:00:20]} 39. Nf6+ {[%clk 0:00:17.6]} 39... Kg5 {[%clk 0:00:21]} 40. Nd7
{[%clk 0:00:19.5]} 40... e4 {[%clk 0:00:18.8]} 41. Nc5 {[%clk 0:00:19.3]} 41...
Kg4 {[%clk 0:00:19.7]} 42. Ne6 {[%clk 0:00:19]} 42... g5 {[%clk 0:00:20]} 43.
Ke2 {[%clk 0:00:18.8]} 43... f4 {[%clk 0:00:21.1]} 44. gxf4 {[%clk 0:00:20.1]}
44... gxf4 {[%clk 0:00:23]} 45. Nd4 {[%clk 0:00:21]} 45... Nc4 {[%clk
0:00:24.1]} 46. Ne6 {[%clk 0:00:21.1]} 46... f3+ {[%clk 0:00:25.6]} 47. Kf1
{[%clk 0:00:21.8]} 47... Kf5 {[%clk 0:00:27.2]} 48. Nc5 {[%clk 0:00:22.4]} 48...
Nd6 {[%clk 0:00:27.5]} 49. Nb3 {[%clk 0:00:23.7]} 49... Ke5 {[%clk 0:00:28.8]}
50. Ke1 {[%clk 0:00:24.4]} 50... Kd5 {[%clk 0:00:30.3]} 51. Kd2 {[%clk 0:00:26]}
51... Nc4+ {[%clk 0:00:30.8]} 52. Kc2 {[%clk 0:00:26.7]} 52... b6 {[%clk
0:00:32.3]} 53. Nd4 {[%clk 0:00:27.7]} 53... e3 {[%clk 0:00:29]} 54. fxe3 {[%clk
0:00:27.8]} 54... f2 {[%clk 0:00:30.3]} 55. Nf5 {[%clk 0:00:29.4]} 55... f1=Q
{[%clk 0:00:26.5]} 56. e4+ {[%clk 0:00:31.3]} 56... Ke5 {[%clk 0:00:26.8]} 0-1